[Event "*** Qualifier 2: Titled Tuesday 3|2 Blitz"]
[Site "Chess.com"]
[Date "2017.04.11"]
[Round "6"]
[White "feigelag"]
[Black "Hikaru"]
[Result "0-1"]
[WhiteElo "2209"]
[BlackElo "2918"]
[TimeControl "180+2"]
[EndTime "14:23:59 PDT"]
[Termination "Hikaru won by resignation"]

1. d4 {[%clk 0:03:02]} 1... Nf6 {[%clk 0:03:00.7]} 2. c4 {[%clk 0:03:02.6]} 2...
e6 {[%clk 0:03:02.2]} 3. Nf3 {[%clk 0:03:03.4]} 3... d5 {[%clk 0:03:03.5]} 4. g3
{[%clk 0:03:03.7]} 4... Bb4+ {[%clk 0:03:04.3]} 5. Bd2 {[%clk 0:03:02.9]} 5...
Be7 {[%clk 0:03:05.4]} 6. Bg2 {[%clk 0:03:02.8]} 6... O-O {[%clk 0:03:07.1]} 7.
O-O {[%clk 0:03:02.2]} 7... Nbd7 {[%clk 0:03:08.8]} 8. Qc2 {[%clk 0:03:00.6]}
8... Ne4 {[%clk 0:03:10]} 9. Bf4 {[%clk 0:02:58.9]} 9... c6 {[%clk 0:03:10.8]}
10. Nc3 {[%clk 0:02:57.8]} 10... g5 {[%clk 0:03:12]} 11. Be3 {[%clk 0:02:58.2]}
11... Nd6 {[%clk 0:03:12.1]} 12. b3 {[%clk 0:02:50.4]} 12... Nf5 {[%clk
0:03:10.1]} 13. Bc1 {[%clk 0:02:48.8]} 13... g4 {[%clk 0:03:08.8]} 14. Nd2
{[%clk 0:02:44.7]} 14... Nxd4 {[%clk 0:03:09.3]} 15. Qd1 {[%clk 0:02:44.6]}
15... Bf6 {[%clk 0:02:58.8]} 16. Bb2 {[%clk 0:02:41.8]} 16... h5 {[%clk
0:02:37.3]} 17. e3 {[%clk 0:02:34.3]} 17... Nf5 {[%clk 0:02:38.1]} 18. h3 {[%clk
0:02:28.2]} 18... Ne5 {[%clk 0:02:37.4]} 19. e4 {[%clk 0:02:16.2]} 19... Nd3
{[%clk 0:02:25.2]} 20. exf5 {[%clk 0:02:11]} 20... Nxb2 {[%clk 0:02:25.7]} 21.
Qc2 {[%clk 0:02:09.6]} 21... Qa5 {[%clk 0:02:26.8]} 22. Rac1 {[%clk 0:02:01.2]}
22... Qxc3 {[%clk 0:02:17.7]} 23. Qxc3 {[%clk 0:02:01]} 23... Bxc3 {[%clk
0:02:19.6]} 24. Rxc3 {[%clk 0:02:02.4]} 24... d4 {[%clk 0:02:10.5]} 25. Rc2
{[%clk 0:02:01.5]} 25... Nd3 {[%clk 0:02:12]} 26. hxg4 {[%clk 0:02:00.1]} 26...
hxg4 {[%clk 0:02:12.2]} 27. fxe6 {[%clk 0:01:54.9]} 27... Bxe6 {[%clk
0:02:11.9]} 28. Ne4 {[%clk 0:01:55.2]} 28... Rad8 {[%clk 0:02:12.5]} 29. Rd2
{[%clk 0:01:54]} 29... Ne5 {[%clk 0:02:13.6]} 30. Rfd1 {[%clk 0:01:45.7]} 30...
d3 {[%clk 0:02:05.1]} 31. Nc5 {[%clk 0:01:44.5]} 31... Bf5 {[%clk 0:02:06.4]}
32. Nxb7 {[%clk 0:01:43]} 32... Rd4 {[%clk 0:02:07.9]} 33. Nc5 {[%clk
0:01:36.2]} 33... Kg7 {[%clk 0:02:07.8]} 34. Re1 {[%clk 0:01:28.6]} 34... f6
{[%clk 0:02:09.1]} 35. Re3 {[%clk 0:01:27.8]} 35... Kg6 {[%clk 0:02:05.4]} 36.
Kf1 {[%clk 0:01:20]} 36... a5 {[%clk 0:02:05.5]} 37. Na4 {[%clk 0:01:10.6]}
37... Rfd8 {[%clk 0:01:51.9]} 38. Nc5 {[%clk 0:01:07.9]} 38... Rb8 {[%clk
0:01:45.7]} 39. f4 {[%clk 0:00:43.7]} 39... gxf3 {[%clk 0:01:45.8]} 40. Bxf3
{[%clk 0:00:44.9]} 40... Nxf3 {[%clk 0:01:26.9]} 41. Rxf3 {[%clk 0:00:45.6]}
41... Re8 {[%clk 0:01:28.6]} 42. Kf2 {[%clk 0:00:40]} 42... Kg5 {[%clk
0:01:19.9]} 43. Re3 {[%clk 0:00:34.2]} 43... Re5 {[%clk 0:01:16.3]} 44. Rxe5
{[%clk 0:00:30.7]} 44... fxe5 {[%clk 0:01:18.2]} 45. Ke3 {[%clk 0:00:30.8]}
45... Kg4 {[%clk 0:01:19.4]} 46. Nxd3 {[%clk 0:00:23.3]} 46... Rxd3+ {[%clk
0:01:19.6]} 47. Rxd3 {[%clk 0:00:24.5]} 47... Bxd3 {[%clk 0:01:21.5]} 48. Kxd3
{[%clk 0:00:25.8]} 48... Kf3 {[%clk 0:01:23.1]} 49. Kd2 {[%clk 0:00:27.1]} 49...
e4 {[%clk 0:01:24.4]} 50. Ke1 {[%clk 0:00:24.6]} 50... c5 {[%clk 0:01:25.1]} 51.
a3 {[%clk 0:00:20]} 51... Kxg3 {[%clk 0:01:26.3]} 52. Ke2 {[%clk 0:00:19.6]}
52... Kf4 {[%clk 0:01:27]} 53. Kf2 {[%clk 0:00:14.9]} 53... e3+ {[%clk
0:01:28.1]} 54. Ke2 {[%clk 0:00:16.3]} 54... Ke4 {[%clk 0:01:30]} 55. b4 {[%clk
0:00:13.9]} 55... cxb4 {[%clk 0:01:24.1]} 56. axb4 {[%clk 0:00:14.7]} 56... axb4
{[%clk 0:01:26]} 57. c5 {[%clk 0:00:16.1]} 57... b3 {[%clk 0:01:27.7]} 58. c6
{[%clk 0:00:17.3]} 58... b2 {[%clk 0:01:29.2]} 59. c7 {[%clk 0:00:18.7]} 59...
b1=Q {[%clk 0:01:30.8]} 60. c8=Q {[%clk 0:00:19.3]} 60... Qb2+ {[%clk
0:01:32.7]} 61. Kd1 {[%clk 0:00:19.1]} 0-1

[Event "*** Qualifier 2: Titled Tuesday 3|2 Blitz"]
[Site "Chess.com"]
[Date "2017.04.11"]
[Round "6"]
[White "johnathan113"]
[Black "Alexander_Donchenko"]
[Result "1-0"]
[WhiteElo "2441"]
[BlackElo "2565"]
[TimeControl "180+2"]
[EndTime "14:24:03 PDT"]
[Termination "johnathan113 won by resignation"]

1. d4 {[%clk 0:03:00]} 1... d5 {[%clk 0:03:00.8]} 2. Nc3 {[%clk 0:03:00.9]} 2...
c6 {[%clk 0:03:01.6]} 3. Bf4 {[%clk 0:02:58.8]} 3... Nf6 {[%clk 0:03:02.2]} 4.
Qd2 {[%clk 0:02:58.3]} 4... Bf5 {[%clk 0:03:01.5]} 5. f3 {[%clk 0:02:59.5]} 5...
e6 {[%clk 0:03:02.2]} 6. g4 {[%clk 0:03:00]} 6... Bg6 {[%clk 0:03:02.4]} 7. h4
{[%clk 0:03:01.5]} 7... h5 {[%clk 0:03:02.4]} 8. g5 {[%clk 0:03:02.4]} 8... Nfd7
{[%clk 0:03:03.7]} 9. e3 {[%clk 0:03:03.3]} 9... Nb6 {[%clk 0:03:03.7]} 10. Bd3
{[%clk 0:03:03.5]} 10... Bxd3 {[%clk 0:03:02.4]} 11. cxd3 {[%clk 0:03:05.4]}
11... g6 {[%clk 0:03:02.3]} 12. Nge2 {[%clk 0:03:05.6]} 12... Bg7 {[%clk
0:03:01.5]} 13. Kf2 {[%clk 0:03:01.5]} 13... N8d7 {[%clk 0:03:01.6]} 14. a4
{[%clk 0:02:57.9]} 14... a5 {[%clk 0:02:57.5]} 15. Bd6 {[%clk 0:02:58.4]} 15...
Nc8 {[%clk 0:02:56.9]} 16. Ba3 {[%clk 0:02:59.1]} 16... Ne7 {[%clk 0:02:55.9]}
17. e4 {[%clk 0:02:45]} 17... O-O {[%clk 0:02:56.1]} 18. Kg2 {[%clk 0:02:44.5]}
18... Re8 {[%clk 0:02:56.3]} 19. Rac1 {[%clk 0:02:42.4]} 19... e5 {[%clk
0:02:48.4]} 20. dxe5 {[%clk 0:02:27.2]} 20... Nxe5 {[%clk 0:02:48.9]} 21. Qe3
{[%clk 0:02:10.8]} 21... Qd7 {[%clk 0:02:13.2]} 22. b3 {[%clk 0:02:06.3]} 22...
d4 {[%clk 0:01:18.6]} 23. Qxd4 {[%clk 0:01:48.7]} 23... Qe6 {[%clk 0:01:15]} 24.
Qb6 {[%clk 0:01:13.2]} 24... Nxd3 {[%clk 0:01:14]} 25. Rcd1 {[%clk 0:01:13.9]}
25... Rad8 {[%clk 0:01:07.8]} 26. Qxa5 {[%clk 0:00:58.8]} 26... Rd7 {[%clk
0:00:40.2]} 27. Qb6 {[%clk 0:00:47.6]} 27... Red8 {[%clk 0:00:32.3]} 28. Qe3
{[%clk 0:00:14.6]} 28... Bxc3 {[%clk 0:00:30.6]} 29. Nxc3 {[%clk 0:00:16.5]}
29... Nf4+ {[%clk 0:00:30.8]} 30. Qxf4 {[%clk 0:00:14.9]} 30... Rxd1 {[%clk
0:00:31]} 31. Rxd1 {[%clk 0:00:16.8]} 31... Rxd1 {[%clk 0:00:32]} 32. Nxd1
{[%clk 0:00:18.7]} 32... Nc8 {[%clk 0:00:23.6]} 33. Bb2 {[%clk 0:00:16.7]} 33...
Qxb3 {[%clk 0:00:23.2]} 34. Qe5 {[%clk 0:00:14]} 34... Kf8 {[%clk 0:00:22.6]}
35. Qh8+ {[%clk 0:00:13.4]} 35... Ke7 {[%clk 0:00:23.7]} 36. Bf6+ {[%clk
0:00:14.3]} 36... Kd6 {[%clk 0:00:21.2]} 37. Qxc8 {[%clk 0:00:13.7]} 37... Qc2+
{[%clk 0:00:21.7]} 38. Nf2 {[%clk 0:00:14.6]} 1-0

[Event "*** Qualifier 2: Titled Tuesday 3|2 Blitz"]
[Site "Chess.com"]
[Date "2017.04.11"]
[Round "6"]
[White "GMHess"]
[Black "Marcus_Harvey"]
[Result "1-0"]
[WhiteElo "2630"]
[BlackElo "2517"]
[TimeControl "180+2"]
[EndTime "14:24:09 PDT"]
[Termination "GMHess won by resignation"]

1. d4 {[%clk 0:03:02]} 1... e6 {[%clk 0:03:01.2]} 2. e4 {[%clk 0:03:01.9]} 2...
d5 {[%clk 0:03:01.8]} 3. Nc3 {[%clk 0:03:02.8]} 3... Nf6 {[%clk 0:03:03.2]} 4.
Bg5 {[%clk 0:03:01]} 4... dxe4 {[%clk 0:03:04.6]} 5. Nxe4 {[%clk 0:03:01.7]}
5... Be7 {[%clk 0:03:06.1]} 6. Bxf6 {[%clk 0:03:02.6]} 6... gxf6 {[%clk
0:03:07.8]} 7. Nf3 {[%clk 0:03:02.1]} 7... f5 {[%clk 0:03:09.4]} 8. Nc3 {[%clk
0:02:57.8]} 8... a6 {[%clk 0:03:10.5]} 9. Qe2 {[%clk 0:02:44.7]} 9... b5 {[%clk
0:03:06.7]} 10. O-O-O {[%clk 0:02:45.7]} 10... b4 {[%clk 0:02:57.4]} 11. Na4
{[%clk 0:02:46.4]} 11... Qd5 {[%clk 0:02:56.8]} 12. Kb1 {[%clk 0:02:29.5]} 12...
Bd7 {[%clk 0:02:42.6]} 13. Nc5 {[%clk 0:02:30.4]} 13... Bb5 {[%clk 0:02:43.7]}
14. Qe5 {[%clk 0:02:06.8]} 14... Qxe5 {[%clk 0:02:41.4]} 15. Nxe5 {[%clk
0:02:08.7]} 15... Bxc5 {[%clk 0:02:27.2]} 16. Bxb5+ {[%clk 0:01:41.9]} 16...
axb5 {[%clk 0:02:27.1]} 17. dxc5 {[%clk 0:01:43.4]} 17... f6 {[%clk 0:02:28.3]}
18. Nf3 {[%clk 0:01:42.6]} 18... e5 {[%clk 0:01:54.6]} 19. Nh4 {[%clk
0:01:42.8]} 19... f4 {[%clk 0:01:54.4]} 20. g3 {[%clk 0:01:44.1]} 20... fxg3
{[%clk 0:01:53]} 21. hxg3 {[%clk 0:01:46]} 21... Nc6 {[%clk 0:01:52.7]} 22. Ng6
{[%clk 0:01:31]} 22... Rg8 {[%clk 0:01:46]} 23. Rxh7 {[%clk 0:01:31.7]} 23...
Rd8 {[%clk 0:01:45.4]} 24. Rxd8+ {[%clk 0:01:29.1]} 24... Kxd8 {[%clk
0:01:32.5]} 25. Nh4 {[%clk 0:01:25.3]} 25... Kc8 {[%clk 0:01:32.9]} 26. Rf7
{[%clk 0:01:20.4]} 26... Rd8 {[%clk 0:01:33.4]} 27. Kc1 {[%clk 0:01:13.6]} 27...
Nd4 {[%clk 0:01:32.8]} 28. c3 {[%clk 0:01:01.4]} 28... b3 {[%clk 0:01:05.2]} 29.
axb3 {[%clk 0:01:00.9]} 29... Nxb3+ {[%clk 0:01:06.5]} 30. Kc2 {[%clk
0:01:01.7]} 30... Nxc5 {[%clk 0:00:58.5]} 31. Rxf6 {[%clk 0:01:01.7]} 31... Ne4
{[%clk 0:00:59.3]} 32. Rf5 {[%clk 0:00:34]} 32... Rd2+ {[%clk 0:00:52.9]} 33.
Kc1 {[%clk 0:00:24.2]} 33... Rxf2 {[%clk 0:00:52.5]} 34. Rxe5 {[%clk 0:00:24.4]}
34... Rf1+ {[%clk 0:00:40.9]} 35. Kc2 {[%clk 0:00:23.9]} 35... Rf2+ {[%clk
0:00:42]} 36. Kd3 {[%clk 0:00:17.2]} 36... Nxg3 {[%clk 0:00:22.7]} 37. Rxb5
{[%clk 0:00:17.7]} 37... Nf1 {[%clk 0:00:16.7]} 38. b4 {[%clk 0:00:15.4]} 38...
Rd2+ {[%clk 0:00:17.7]} 39. Kc4 {[%clk 0:00:14.5]} 39... Ne3+ {[%clk 0:00:18.2]}
40. Kb3 {[%clk 0:00:15.5]} 40... Nd5 {[%clk 0:00:10.3]} 41. Nf5 {[%clk
0:00:12.1]} 41... Rd3 {[%clk 0:00:05.7]} 42. Rxd5 {[%clk 0:00:13]} 42... Rd2
{[%clk 0:00:03.7]} 1-0

[Event "*** Qualifier 2: Titled Tuesday 3|2 Blitz"]
[Site "Chess.com"]
[Date "2017.04.11"]
[Round "6"]
[White "Bugcrusher"]
[Black "Robin-Side"]
[Result "1-0"]
[WhiteElo "2404"]
[BlackElo "2392"]
[TimeControl "180+2"]
[EndTime "14:24:09 PDT"]
[Termination "Bugcrusher won by resignation"]

1. d4 {[%clk 0:03:01.9]} 1... Nf6 {[%clk 0:02:58.7]} 2. c4 {[%clk 0:03:02.7]}
2... g6 {[%clk 0:02:59.8]} 3. Nc3 {[%clk 0:03:03.6]} 3... d5 {[%clk 0:02:59.7]}
4. Nf3 {[%clk 0:03:03.1]} 4... Bg7 {[%clk 0:03:00.3]} 5. cxd5 {[%clk 0:03:03.6]}
5... Nxd5 {[%clk 0:03:00.9]} 6. Bg5 {[%clk 0:03:05.1]} 6... Nxc3 {[%clk
0:02:51.5]} 7. bxc3 {[%clk 0:03:05.7]} 7... c5 {[%clk 0:02:51.4]} 8. e3 {[%clk
0:03:05.9]} 8... O-O {[%clk 0:02:50.5]} 9. Be2 {[%clk 0:02:59.2]} 9... Nc6
{[%clk 0:02:49]} 10. O-O {[%clk 0:02:58.6]} 10... cxd4 {[%clk 0:02:45.1]} 11.
exd4 {[%clk 0:02:26.8]} 11... Be6 {[%clk 0:02:40.6]} 12. Re1 {[%clk 0:02:26.4]}
12... Na5 {[%clk 0:02:22.4]} 13. Bd3 {[%clk 0:02:22.5]} 13... Re8 {[%clk
0:02:10.7]} 14. Ne5 {[%clk 0:02:20.5]} 14... f6 {[%clk 0:01:56.4]} 15. Nf3
{[%clk 0:01:57.2]} 15... Bf7 {[%clk 0:01:57.3]} 16. Bh4 {[%clk 0:01:56.9]} 16...
Nc4 {[%clk 0:01:57.2]} 17. Qe2 {[%clk 0:01:53]} 17... Rc8 {[%clk 0:01:56.3]} 18.
Rad1 {[%clk 0:01:48.1]} 18... b5 {[%clk 0:01:52.3]} 19. h3 {[%clk 0:01:48]}
19... Qa5 {[%clk 0:01:46.8]} 20. Rc1 {[%clk 0:01:42.8]} 20... Qa3 {[%clk
0:01:41.9]} 21. Bg3 {[%clk 0:01:29.2]} 21... a6 {[%clk 0:01:40.8]} 22. Bb1
{[%clk 0:01:26.7]} 22... Nb6 {[%clk 0:01:20.5]} 23. Qd3 {[%clk 0:00:52.6]} 23...
Na4 {[%clk 0:01:16.2]} 24. d5 {[%clk 0:00:49.6]} 24... Rxc3 {[%clk 0:01:12.9]}
25. Rxc3 {[%clk 0:00:48.8]} 25... Qxc3 {[%clk 0:01:13.7]} 26. Qd1 {[%clk
0:00:39.7]} 26... Nb2 {[%clk 0:01:11.5]} 27. Qe2 {[%clk 0:00:37]} 27... Bxd5
{[%clk 0:01:10]} 28. Be4 {[%clk 0:00:37.4]} 28... Bf7 {[%clk 0:01:02.6]} 29. Bf4
{[%clk 0:00:31.8]} 29... Nc4 {[%clk 0:01:01.4]} 30. Rd1 {[%clk 0:00:29.9]} 30...
e5 {[%clk 0:01:00.6]} 31. Bc1 {[%clk 0:00:30.4]} 31... Qa5 {[%clk 0:00:57.7]}
32. h4 {[%clk 0:00:28.9]} 32... Rd8 {[%clk 0:00:57.7]} 33. Re1 {[%clk
0:00:27.9]} 33... Bd5 {[%clk 0:00:37.2]} 34. h5 {[%clk 0:00:19.3]} 34... f5
{[%clk 0:00:31.6]} 35. Bxd5+ {[%clk 0:00:18.7]} 35... Rxd5 {[%clk 0:00:32.4]}
36. hxg6 {[%clk 0:00:20.3]} 36... hxg6 {[%clk 0:00:33.3]} 37. Nh4 {[%clk
0:00:21.5]} 37... Qb6 {[%clk 0:00:33.7]} 38. Rf1 {[%clk 0:00:21.9]} 38... Qf6
{[%clk 0:00:31]} 39. g3 {[%clk 0:00:22.7]} 39... g5 {[%clk 0:00:22.9]} 40. Nf3
{[%clk 0:00:23.1]} 40... e4 {[%clk 0:00:22.6]} 41. Nxg5 {[%clk 0:00:23.8]} 41...
Bh6 {[%clk 0:00:17.4]} 42. Qh5 {[%clk 0:00:23.9]} 42... Bxg5 {[%clk 0:00:10.5]}
43. Bxg5 {[%clk 0:00:25.8]} 43... Qf7 {[%clk 0:00:11.5]} 44. Qh4 {[%clk
0:00:23.2]} 44... Nd2 {[%clk 0:00:11]} 45. Bxd2 {[%clk 0:00:23.5]} 45... Rxd2
{[%clk 0:00:11.8]} 46. Qg5+ {[%clk 0:00:24.8]} 46... Qg7 {[%clk 0:00:12.5]} 47.
Qxd2 {[%clk 0:00:26.7]} 1-0

[Event "*** Qualifier 2: Titled Tuesday 3|2 Blitz"]
[Site "Chess.com"]
[Date "2017.04.11"]
[Round "6"]
[White "rst2003"]
[Black "woodhy"]
[Result "1-0"]
[WhiteElo "2129"]
[BlackElo "2095"]
[TimeControl "180+2"]
[EndTime "14:24:11 PDT"]
[Termination "rst2003 won by checkmate"]

1. e4 {[%clk 0:03:02]} 1... e6 {[%clk 0:03:02]} 2. d4 {[%clk 0:03:01.7]} 2... d5
{[%clk 0:03:01.1]} 3. Nd2 {[%clk 0:03:02.7]} 3... c5 {[%clk 0:03:01.6]} 4. Ngf3
{[%clk 0:03:02.1]} 4... Nc6 {[%clk 0:03:02.6]} 5. exd5 {[%clk 0:03:02.3]} 5...
exd5 {[%clk 0:03:02.8]} 6. Bb5 {[%clk 0:03:03]} 6... Bd6 {[%clk 0:03:04.2]} 7.
O-O {[%clk 0:03:03.4]} 7... Ne7 {[%clk 0:03:04.6]} 8. Re1 {[%clk 0:03:00.7]}
8... O-O {[%clk 0:03:05.1]} 9. dxc5 {[%clk 0:02:59.8]} 9... Bxc5 {[%clk
0:03:07]} 10. Nb3 {[%clk 0:03:00.1]} 10... Bb6 {[%clk 0:02:52.3]} 11. h3 {[%clk
0:02:55.2]} 11... Qd6 {[%clk 0:02:50.9]} 12. c3 {[%clk 0:02:49.5]} 12... Bxh3
{[%clk 0:02:34.5]} 13. gxh3 {[%clk 0:02:15.7]} 13... Qg3+ {[%clk 0:02:33.1]} 14.
Kh1 {[%clk 0:02:15.6]} 14... Bxf2 {[%clk 0:02:24.5]} 15. Rf1 {[%clk 0:02:11]}
15... Nf5 {[%clk 0:02:01]} 16. Nh2 {[%clk 0:02:00.7]} 16... Nh4 {[%clk
0:00:51.6]} 17. Qg4 {[%clk 0:01:53.8]} 17... a6 {[%clk 0:00:34.8]} 18. Bxc6
{[%clk 0:01:33.4]} 18... bxc6 {[%clk 0:00:32.5]} 19. Bf4 {[%clk 0:01:33.4]}
19... Qxg4 {[%clk 0:00:26.5]} 20. Nxg4 {[%clk 0:01:27.4]} 20... Bb6 {[%clk
0:00:28.4]} 21. Ne5 {[%clk 0:01:27.3]} 21... Rfc8 {[%clk 0:00:15.7]} 22. Bg3
{[%clk 0:01:20.7]} 22... Ng6 {[%clk 0:00:15.3]} 23. Nxf7 {[%clk 0:01:21.1]}
23... c5 {[%clk 0:00:14.7]} 24. Rad1 {[%clk 0:01:06.6]} 24... d4 {[%clk
0:00:10.6]} 25. cxd4 {[%clk 0:01:06.4]} 25... cxd4 {[%clk 0:00:12.5]} 26. Nd6
{[%clk 0:00:48.6]} 26... Rc2 {[%clk 0:00:12.9]} 27. Nxd4 {[%clk 0:00:44.4]}
27... Rxb2 {[%clk 0:00:14.1]} 28. Ne6 {[%clk 0:00:39.8]} 28... Rxa2 {[%clk
0:00:13.9]} 29. Rf7 {[%clk 0:00:38.7]} 29... Ra7 {[%clk 0:00:12.9]} 30. Rdf1
{[%clk 0:00:19.8]} 30... h6 {[%clk 0:00:09.6]} 31. Rxa7 {[%clk 0:00:16.2]} 31...
Bxa7 {[%clk 0:00:11.5]} 32. Rf7 {[%clk 0:00:16.7]} 32... Ra1+ {[%clk 0:00:12.8]}
33. Kh2 {[%clk 0:00:18.1]} 33... Ra2+ {[%clk 0:00:13.8]} 34. Kh1 {[%clk
0:00:17.2]} 34... Ra1+ {[%clk 0:00:15.3]} 35. Kg2 {[%clk 0:00:18.6]} 35... Ra2+
{[%clk 0:00:16.9]} 36. Kf3 {[%clk 0:00:19.4]} 36... Ra3+ {[%clk 0:00:18.4]} 37.
Kg4 {[%clk 0:00:16.9]} 37... Rxg3+ {[%clk 0:00:19.1]} 38. Kxg3 {[%clk
0:00:17.6]} 38... Bb8 {[%clk 0:00:21]} 39. Rxg7+ {[%clk 0:00:18.1]} 39... Kh8
{[%clk 0:00:22.5]} 40. Rxg6 {[%clk 0:00:19.3]} 40... Bxd6+ {[%clk 0:00:23.9]}
41. Kg4 {[%clk 0:00:20.9]} 41... Kh7 {[%clk 0:00:25.8]} 42. Kf5 {[%clk
0:00:21.7]} 42... a5 {[%clk 0:00:26.5]} 43. Rg7+ {[%clk 0:00:22.9]} 43... Kh8
{[%clk 0:00:27.4]} 44. Kg6 {[%clk 0:00:24.2]} 44... a4 {[%clk 0:00:26.5]} 45.
Nd8 {[%clk 0:00:24.8]} 45... a3 {[%clk 0:00:27.8]} 46. Nf7# {[%clk 0:00:26.4]}
1-0

[Event "*** Qualifier 2: Titled Tuesday 3|2 Blitz"]
[Site "Chess.com"]
[Date "2017.04.11"]
[Round "6"]
[White "Iball95"]
[Black "afgano29"]
[Result "1-0"]
[WhiteElo "2541"]
[BlackElo "2374"]
[TimeControl "180+2"]
[EndTime "14:24:20 PDT"]
[Termination "Iball95 won by resignation"]

1. e4 {[%clk 0:03:02]} 1... c5 {[%clk 0:03:00.4]} 2. Nf3 {[%clk 0:03:03.4]} 2...
d6 {[%clk 0:02:49.6]} 3. Bb5+ {[%clk 0:03:03.8]} 3... Bd7 {[%clk 0:02:50.3]} 4.
Bxd7+ {[%clk 0:03:03.9]} 4... Nxd7 {[%clk 0:02:52.2]} 5. c4 {[%clk 0:03:05.5]}
5... Ngf6 {[%clk 0:02:52.8]} 6. Nc3 {[%clk 0:03:06.2]} 6... g6 {[%clk
0:02:43.8]} 7. O-O {[%clk 0:03:07.5]} 7... Bg7 {[%clk 0:02:43.7]} 8. d4 {[%clk
0:03:08.7]} 8... cxd4 {[%clk 0:02:42.4]} 9. Nxd4 {[%clk 0:03:10.6]} 9... O-O
{[%clk 0:02:43.6]} 10. b3 {[%clk 0:03:08.7]} 10... Rc8 {[%clk 0:02:41.9]} 11.
Be3 {[%clk 0:03:07.4]} 11... a6 {[%clk 0:02:40.9]} 12. Rc1 {[%clk 0:03:07.9]}
12... Ne5 {[%clk 0:02:39.1]} 13. f3 {[%clk 0:03:05]} 13... Nc6 {[%clk
0:02:38.6]} 14. Qd2 {[%clk 0:03:04]} 14... Nd7 {[%clk 0:02:38.4]} 15. Rfd1
{[%clk 0:02:44.1]} 15... Nxd4 {[%clk 0:02:37.9]} 16. Bxd4 {[%clk 0:02:46]} 16...
Bxd4+ {[%clk 0:02:38.5]} 17. Qxd4 {[%clk 0:02:47.9]} 17... Qb6 {[%clk
0:02:39.3]} 18. Nd5 {[%clk 0:02:44.3]} 18... Qxd4+ {[%clk 0:02:39.2]} 19. Rxd4
{[%clk 0:02:46.2]} 19... Rfe8 {[%clk 0:02:40.1]} 20. Rcd1 {[%clk 0:02:38.3]}
20... Kf8 {[%clk 0:02:37.3]} 21. Kf2 {[%clk 0:02:36]} 21... Rc6 {[%clk
0:02:36.8]} 22. Nb4 {[%clk 0:02:33.9]} 22... Rc5 {[%clk 0:02:35.2]} 23. R1d2
{[%clk 0:02:22]} 23... Nb8 {[%clk 0:02:31.2]} 24. Rd5 {[%clk 0:02:21.3]} 24...
Rxd5 {[%clk 0:02:30.3]} 25. Nxd5 {[%clk 0:02:20.8]} 25... Nd7 {[%clk 0:02:29.8]}
26. Ke3 {[%clk 0:02:20.6]} 26... Rc8 {[%clk 0:02:30.3]} 27. Kd4 {[%clk
0:02:14.5]} 27... Nc5 {[%clk 0:02:30.6]} 28. Rc2 {[%clk 0:02:14.1]} 28... Ne6+
{[%clk 0:02:29.5]} 29. Kd3 {[%clk 0:02:14.8]} 29... Nc5+ {[%clk 0:02:29.9]} 30.
Ke3 {[%clk 0:02:15.4]} 30... Nd7 {[%clk 0:02:30.7]} 31. h4 {[%clk 0:02:12.8]}
31... h5 {[%clk 0:02:30.6]} 32. g3 {[%clk 0:02:13.1]} 32... Ne5 {[%clk
0:02:30.7]} 33. f4 {[%clk 0:02:07.3]} 33... Nd7 {[%clk 0:02:31]} 34. Kd4 {[%clk
0:02:01.7]} 34... e6 {[%clk 0:02:31.3]} 35. Nc3 {[%clk 0:01:58]} 35... Ke7
{[%clk 0:02:32.1]} 36. Rd2 {[%clk 0:01:58.6]} 36... Nb8 {[%clk 0:02:32.8]} 37.
Ke3 {[%clk 0:01:59.1]} 37... Nc6 {[%clk 0:02:33.1]} 38. Ne2 {[%clk 0:01:45.4]}
38... Na7 {[%clk 0:02:28.1]} 39. Nd4 {[%clk 0:01:42.7]} 39... Nc6 {[%clk
0:02:26.6]} 40. Nxc6+ {[%clk 0:01:42.7]} 40... Rxc6 {[%clk 0:02:28.5]} 41. Kd4
{[%clk 0:01:41]} 41... Rc5 {[%clk 0:02:27.8]} 42. b4 {[%clk 0:01:41.1]} 42...
Rc8 {[%clk 0:02:22.4]} 43. Rc2 {[%clk 0:01:31.4]} 43... Rd8 {[%clk 0:02:20.4]}
44. a3 {[%clk 0:01:28.4]} 44... f6 {[%clk 0:02:21.1]} 45. Ke3 {[%clk 0:01:27.8]}
45... Rc8 {[%clk 0:02:21.5]} 46. Kd3 {[%clk 0:01:28.1]} 46... Rc6 {[%clk
0:02:21.9]} 47. a4 {[%clk 0:01:27.7]} 47... Rc8 {[%clk 0:02:22.3]} 48. Rb2
{[%clk 0:01:28.1]} 48... Rg8 {[%clk 0:02:19]} 49. Rh2 {[%clk 0:01:24.2]} 49...
Rc8 {[%clk 0:02:18.4]} 50. Rc2 {[%clk 0:01:25]} 50... Rg8 {[%clk 0:02:18.9]} 51.
c5 {[%clk 0:01:23.8]} 51... g5 {[%clk 0:02:16.6]} 52. hxg5 {[%clk 0:01:20.4]}
52... fxg5 {[%clk 0:02:17]} 53. c6 {[%clk 0:01:05.3]} 53... bxc6 {[%clk
0:02:11.3]} 54. Rxc6 {[%clk 0:01:07.2]} 54... gxf4 {[%clk 0:02:11.5]} 55. gxf4
{[%clk 0:01:08.8]} 55... h4 {[%clk 0:02:12]} 56. Rxa6 {[%clk 0:01:01.9]} 56...
Rh8 {[%clk 0:02:10]} 57. Rc6 {[%clk 0:01:00.7]} 57... h3 {[%clk 0:02:10.5]} 58.
Rc1 {[%clk 0:01:01.7]} 58... h2 {[%clk 0:02:11.4]} 59. Rh1 {[%clk 0:01:03.3]}
59... Kd7 {[%clk 0:02:12.6]} 60. b5 {[%clk 0:00:59.8]} 60... Kc7 {[%clk
0:02:12.3]} 61. a5 {[%clk 0:01:00.7]} 61... Kb7 {[%clk 0:02:13.5]} 62. Ke3
{[%clk 0:00:56.4]} 62... Rh5 {[%clk 0:02:13.7]} 63. Kf3 {[%clk 0:00:47.9]} 63...
Kc7 {[%clk 0:02:01.3]} 64. b6+ {[%clk 0:00:31.2]} 64... Kc6 {[%clk 0:02:01.5]}
65. Kg4 {[%clk 0:00:25.5]} 65... Rxa5 {[%clk 0:02:00.7]} 66. Rxh2 {[%clk
0:00:26.5]} 66... e5 {[%clk 0:01:59.8]} 67. f5 {[%clk 0:00:26.9]} 67... Kxb6
{[%clk 0:02:00]} 68. f6 {[%clk 0:00:27.9]} 68... Kc6 {[%clk 0:01:52.8]} 69. f7
{[%clk 0:00:28.1]} 69... Ra8 {[%clk 0:01:51.5]} 70. Kf5 {[%clk 0:00:29.3]} 70...
Kd7 {[%clk 0:01:51.9]} 71. Kf6 {[%clk 0:00:30.4]} 1-0